bitfinex/quotes_SOLUSD_20251201
["timestamp","ask_amount","ask_price","bid_price","bid_amount"]
[1764597534534,0.69,126.73,126.7,12.38200516]
[1764597534779,0.69,126.73,126.7,13.04200516]
[1764597534943,8.58089642,126.73,126.7,13.04200516]
[1764597535858,0.69,126.72,126.69,4.48969664]
[1764597536039,5.17969664,126.72,126.69,7.89328281]
[1764597536240,0.69,126.72,126.69,7.89328281]
[1764597536440,0.66,126.72,126.69,13.09297945]
[1764597536746,0.66,126.72,126.69,12.38297945]
[1764597536946,5.14969664,126.72,126.68,12.3832696]
[1764597537146,5.14969664,126.72,126.68,13.0932696]
[1764597537355,0.66,126.71,126.68,13.0932696]
[1764597538156,5.14969664,126.71,126.67,7.89421898]
[1764597538354,4.48969664,126.7,126.65,4.48969664]
[1764597538566,13.04266842,126.7,126.66,13.09484901]
[1764597538946,0.66,126.69,126.66,13.09484901]
[1764597539747,8.55208474,126.71,126.68,4.48969664]
[1764597540264,8.55208474,126.71,126.68,5.19969664]
[1764597540462,8.55208474,126.71,126.68,13.09353274]
[1764597541769,8.55208474,126.71,126.68,8.6038361]
[1764597541983,50.78969664,126.73,126.69,4.48969664]
[1764597542272,50.46,126.73,126.69,5.19969664]
[1764597542576,50.46,126.73,126.7,0.71]
[1764597543080,50.46,126.73,126.7,5.19969664]
[1764597543081,4.16,126.73,126.7,5.19969664]
[1764597543375,11.3911706,126.73,126.68,27.62860086]
[1764597543575,4.48969664,126.71,126.68,8.6038361]
[1764597543766,4.48969664,126.71,126.67,12.38400481]
[1764597543972,0.66,126.7,126.67,7.89430817]
[1764597544173,5.14969664,126.7,126.67,7.89430817]
[1764597544591,0.66,126.7,126.67,7.89430817]
[1764597544771,0.66,126.7,126.67,8.60430817]
[1764597545073,13.04259782,126.7,126.67,7.89430817]
[1764597545270,16.54259782,126.7,126.67,7.89430817]
[1764597545587,0.66,126.69,126.67,7.89430817]
[1764597547555,0.66,126.69,126.67,12.38400481]
[1764597553465,57.69290118,126.7,126.67,13.09400481]
[1764597553864,0.66,126.69,126.67,12.38400481]
[1764597554861,58.3527045,126.7,126.67,13.09400481]
[1764597555060,0.66,126.69,126.67,13.09400481]
[1764597556680,57.6927045,126.7,126.67,13.09400481]
[1764597556983,0.66,126.69,126.67,13.09400481]
[1764597557386,58.35268457,126.7,126.67,13.09400481]
[1764597557782,0.66,126.69,126.67,4.48969664]
[1764597557984,3.5,126.68,126.64,0.71]
[1764597558283,46.3,126.67,126.64,5.19969664]
[1764597558468,46.96,126.67,126.64,4.48969664]
[1764597558664,0.66,126.66,126.64,4.48969664]
[1764597558864,8.55525901,126.66,126.62,3.5]
[1764597559198,49.8,126.67,126.64,4.48969664]
[1764597559359,49.8,126.67,126.66,4.48969664]
[1764597559561,46.3,126.67,126.66,4.48969664]
[1764597559882,46.96,126.67,126.65,4.48969664]
[1764597561197,12.05348508,126.69,126.66,4.48969664]
[1764597561491,12.05348508,126.69,126.67,4.48969664]
[1764597561694,0.66,126.68,126.67,4.48969664]
[1764597561992,0.66,126.68,126.66,4.48969664]
[1764597562802,8.55443937,126.68,126.64,7.89616063]
[1764597562960,4.48969664,126.66,126.62,7.8976465]
[1764597563165,3.5,126.65,126.62,7.8976465]
[1764597563359,4.16,126.65,126.62,12.38734314]
[1764597563580,4.16,126.65,126.62,4.48969664]
[1764597564389,12.05613924,126.65,126.62,4.48969664]
[1764597565084,4.16,126.65,126.63,4.48969664]
[1764597565260,3.5,126.65,126.63,4.48969664]
[1764597565466,4.16,126.65,126.63,4.48969664]
[1764597566979,3.5,126.65,126.63,0.67]
[1764597567181,4.19,126.65,126.62,7.89730259]
[1764597567379,0.69,126.64,126.62,4.48969664]
[1764597568370,12.08578365,126.65,126.62,4.48969664]
[1764597570292,0.69,126.64,126.61,4.48969664]
[1764597570597,8.5867124,126.64,126.61,5.15969664]
[1764597570796,8.5867124,126.64,126.62,4.48969664]
[1764597572081,11.39610289,126.65,126.62,4.48969664]
[1764597572298,12.08610289,126.65,126.62,5.15969664]
[1764597572703,58.38610289,126.65,126.62,5.15969664]
[1764597574095,0.69,126.64,126.62,4.48969664]
[1764597576605,58.36610289,126.65,126.62,5.16969664]
[1764597577204,57.69610289,126.65,126.62,5.16969664]
[1764597577399,49.8,126.65,126.62,4.48969664]
[1764597577702,49.8,126.65,126.64,4.48969664]
[1764597577890,50.47,126.65,126.63,4.48969664]
[1764597579311,58.36581802,126.65,126.63,4.48969664]
[1764597579489,50.47,126.65,126.63,4.48969664]
[1764597579806,50.47,126.65,126.63,5.16969664]
[1764597580006,58.3658038,126.65,126.63,4.48969664]
[1764597580508,58.3658038,126.65,126.62,13.06728512]
[1764597584111,57.6958038,126.65,126.61,7.89813802]
[1764597584298,0.67,126.64,126.61,13.06783466]
[1764597584499,0.67,126.64,126.61,12.38783466]
[1764597584699,57.6958038,126.65,126.62,0.68]
[1764597584899,54.8658038,126.65,126.62,5.16969664]
[1764597585090,46.3,126.65,126.64,4.48969664]
[1764597585492,46.3,126.65,126.64,5.16969664]
[1764597586621,3.5,126.66,126.64,13.06609588]
[1764597586804,7.89434207,126.68,126.65,0.68]
[1764597586997,12.06434207,126.68,126.66,4.48969664]
[1764597587505,12.06434207,126.68,126.65,5.16969664]
[1764597587702,0.67,126.67,126.63,5.16969664]
[1764597588017,0.67,126.67,126.64,4.48969664]
[1764597588191,0.67,126.67,126.64,5.16969664]
[1764597588910,8.56489464,126.67,126.64,5.16969664]
[1764597589094,8.56489464,126.67,126.64,0.68]
[1764597590109,8.56489464,126.67,126.64,5.16969664]
[1764597590418,8.56489464,126.67,126.64,13.06608102]
[1764597591022,7.89489464,126.67,126.64,12.38608102]
[1764597591213,7.89489464,126.67,126.65,0.68]
[1764597591514,8.56489464,126.67,126.65,0.68]
[1764597591817,8.56489464,126.67,126.64,13.06608102]
[1764597594399,8.56489464,126.67,126.64,11.45306353]
[1764597595524,0.67,126.67,126.64,11.45306353]
[1764597596328,46.97,126.67,126.64,11.45306353]
[1764597597416,0.69,126.66,126.62,7.8976465]
[1764597597724,49.86667915,126.66,126.62,2.87667915]
[1764597598036,3.5,126.65,126.63,3.55667915]
[1764597598811,46.99,126.66,126.64,2.87667915]
[1764597599010,49.8,126.66,126.64,3.55667915]
[1764597599840,50.49,126.66,126.63,8.57681795]
[1764597600121,49.8,126.66,126.65,2.87667915]
[1764597600332,12.08325869,126.7,126.65,2.87667915]
[1764597600510,0.69,126.69,126.67,2.87667915]
[1764597600822,3.56667915,126.69,126.63,27.639375]
[1764597601048,2.87667915,126.68,126.64,2.87667915]
[1764597601240,2.87667915,126.68,126.63,30.51605415]
[1764597601241,6.37667915,126.67,126.63,30.51605415]
[1764597601403,7.06667915,126.67,126.63,10.7734971]
[1764597601600,3.5,126.67,126.64,3.55667915]
[1764597601903,12.08466754,126.67,126.64,3.55667915]
[1764597602414,11.39466754,126.67,126.64,3.55667915]
[1764597602746,12.08466754,126.67,126.64,11.45303136]
[1764597603038,3.5,126.68,126.65,3.55667915]
[1764597603245,4.19,126.68,126.66,2.87667915]
[1764597603534,3.5,126.68,126.66,3.55667915]
[1764597603716,16.998864,126.7,126.66,3.55667915]
[1764597604044,8.58345923,126.69,126.66,3.55667915]
[1764597604614,7.89345923,126.69,126.66,2.87667915]
[1764597604816,3.56667915,126.68,126.65,7.89528313]
[1764597605019,3.5,126.67,126.64,10.7727612]
[1764597605222,4.19,126.67,126.64,10.7727612]
[1764597605516,0.69,126.66,126.64,10.7727612]
[1764597605716,4.19,126.67,126.64,11.4527612]
[1764597606434,11.39480966,126.67,126.64,7.89608205]
[1764597606636,0.69,126.66,126.64,10.7727612]
[1764597606844,0.69,126.66,126.64,7.89608205]
[1764597607141,12.08480966,126.67,126.64,11.4527612]
[1764597607942,2.87667915,126.65,126.6,10.7755733]
[1764597608154,2.87667915,126.65,126.6,2.87667915]
[1764597608315,4.19,126.64,126.61,3.55667915]
[1764597608709,0.69,126.63,126.6,2.87667915]
[1764597608946,0.69,126.63,126.6,3.55667915]
[1764597609241,0.69,126.65,126.62,2.87667915]
[1764597609427,3.5,126.65,126.63,2.87667915]
[1764597610637,3.5,126.65,126.63,3.55667915]
[1764597611136,11.39582999,126.65,126.64,2.87667915]
[1764597611435,3.5,126.65,126.63,3.55667915]
[1764597611614,11.39582744,126.65,126.63,3.55667915]
[1764597613038,3.5,126.65,126.64,2.87667915]
[1764597613338,3.5,126.68,126.64,3.55667915]
[1764597613526,12.0839059,126.68,126.65,0.68]
[1764597613731,12.0839059,126.68,126.66,2.87667915]
[1764597615226,12.0839059,126.68,126.65,3.55667915]
[1764597615537,3.5,126.68,126.66,2.87667915]
[1764597615933,8.58340247,126.69,126.66,2.87667915]
[1764597616237,3.5,126.68,126.67,3.55667915]
[1764597616535,3.5,126.68,126.67,2.87667915]
[1764597617239,3.5,126.68,126.66,3.55667915]
[1764597618139,3.5,126.68,126.66,0.68]
[1764597618343,3.5,126.68,126.66,3.55667915]
[1764597618918,11.3939155,126.68,126.66,3.55667915]
[1764597619132,12.0839155,126.68,126.66,2.87667915]
[1764597619333,11.3939155,126.68,126.66,2.87667915]
[1764597619641,3.5,126.68,126.66,3.55667915]
[1764597619838,3.5,126.68,126.67,2.87667915]
[1764597620023,3.5,126.68,126.67,3.55667915]
[1764597620222,3.5,126.7,126.67,3.55667915]
[1764597620429,4.19,126.7,126.68,2.87667915]
[1764597621037,12.08305302,126.7,126.68,2.87667915]
[1764597623239,12.08305302,126.7,126.67,3.55667915]
[1764597624036,178.33257059,126.71,126.69,2.87667915]
[1764597624344,7.89396063,126.74,126.7,2.87667915]
[1764597624645,12.07966655,126.75,126.68,0.68]
[1764597624944,19.97362718,126.75,126.72,2.87667915]
[1764597625142,12.07966655,126.75,126.72,2.87667915]
[1764597625342,11.38966655,126.75,126.72,2.87667915]
[1764597625531,12.07966655,126.75,126.72,2.87667915]
[1764597625850,7.88919419,126.76,126.73,3.55667915]
[1764597626043,3.5,126.75,126.73,0.68]
[1764597626231,3.5,126.75,126.73,3.55667915]
[1764597626936,3.5,126.75,126.73,2.87667915]
[1764597627151,0.7,126.74,126.71,2.87667915]
[1764597627440,0.7,126.74,126.68,19.73445516]
[1764597627441,6.37667915,126.73,126.69,2.87667915]
[1764597627949,0.7,126.72,126.69,2.87667915]
[1764597628151,27.22197841,126.73,126.7,2.87667915]
[1764597628445,8.59179296,126.72,126.69,2.87667915]
[1764597628651,4.2,126.71,126.69,2.87667915]
[1764597628949,4.2,126.71,126.68,3.59667915]
[1764597629735,12.09239157,126.71,126.68,3.59667915]
[1764597630136,3.5,126.71,126.7,2.87667915]
[1764597630332,49.8,126.76,126.7,2.87667915]
[1764597630538,62.0067166,126.76,126.72,2.87667915]
[1764597630948,0.7,126.75,126.72,3.59667915]
[1764597631457,8.58987229,126.75,126.72,3.59667915]
[1764597631635,69.19583469,126.76,126.73,2.87667915]
[1764597631841,12.08911809,126.76,126.73,3.59667915]
[1764597632039,12.08911809,126.76,126.73,2.87667915]
[1764597632445,12.08911809,126.76,126.73,3.59667915]
[1764597632848,12.08911809,126.76,126.73,2.87667915]
[1764597636168,12.08911809,126.76,126.73,0.69]
[1764597636344,12.08911809,126.76,126.73,3.56667915]
[1764597637858,12.37662407,126.75,126.7,0.69]
[1764597638066,52.67667915,126.74,126.7,3.56667915]
[1764597638241,58.38046646,126.74,126.71,3.56667915]
[1764597639448,8.80994492,126.72,126.67,0.69]
[1764597639645,3.5,126.71,126.68,2.87667915]
[1764597639954,70.02385433,126.73,126.69,2.87667915]
[1764597640147,3.5,126.72,126.7,2.87667915]
[1764597640568,3.5,126.72,126.71,3.56667915]
[1764597640867,3.5,126.72,126.71,0.69]
[1764597641074,12.08141414,126.72,126.7,2.87667915]
[1764597641439,12.08141414,126.72,126.69,10.76986989]
[1764597641655,12.08141414,126.72,126.69,11.45986989]
[1764597642260,11.39141414,126.72,126.68,2.87667915]
[1764597642480,0.69,126.71,126.68,3.56667915]
[1764597642680,3.5,126.7,126.68,3.56667915]
[1764597642982,3.5,126.7,126.68,0.69]
[1764597643378,3.5,126.7,126.68,3.56667915]
[1764597645275,3.5,126.7,126.69,0.69]
[1764597645588,3.5,126.7,126.69,3.56667915]
[1764597645789,12.08158463,126.72,126.69,3.56667915]
[1764597646108,11.39158463,126.72,126.69,2.87667915]
[1764597646265,0.69,126.71,126.68,10.77003811]
[1764597646451,8.58229975,126.71,126.68,11.46003811]
[1764597646852,4.19,126.7,126.67,7.894213]
[1764597647067,49.8,126.7,126.69,2.87667915]
[1764597647460,49.8,126.7,126.69,3.56667915]
[1764597648591,49.8,126.7,126.68,2.87667915]
[1764597648778,49.8,126.7,126.68,3.56667915]
[1764597651478,49.8,126.7,126.68,10.77057416]
[1764597651672,49.8,126.7,126.68,7.89389501]
[1764597651887,49.8,126.7,126.68,3.56667915]
[1764597652974,49.8,126.7,126.68,11.46022948]
[1764597654476,49.8,126.7,126.68,13.07554438]
[1764597657276,49.8,126.7,126.68,12.38554438]
[1764597657474,49.8,126.7,126.69,5.17199405]
[1764597658299,49.8,126.7,126.69,4.49199405]
[1764597658688,58.36268549,126.7,126.66,4.49199405]
[1764597658887,0.67,126.69,126.65,12.3877698]
[1764597659093,0.67,126.69,126.65,13.0677698]
[1764597659094,3.5,126.68,126.65,13.0677698]
[1764597659581,4.17,126.68,126.65,13.0677698]
[1764597659782,4.17,126.68,126.66,4.49199405]
[1764597660106,3.5,126.68,126.66,5.17199405]
[1764597660478,3.5,126.68,126.65,7.89577575]
[1764597660479,3.5,126.68,126.67,5.17199405]
[1764597660685,57.69138528,126.73,126.67,8.67199405]
[1764597660885,0.67,126.72,126.69,4.49199405]
[1764597661301,4.17,126.72,126.7,7.89265982]
[1764597662403,12.06025301,126.74,126.71,5.17199405]
[1764597663203,3.5,126.74,126.72,5.17199405]
[1764597663397,4.17,126.74,126.72,4.49199405]
[1764597664312,4.17,126.74,126.71,13.06341359]
[1764597665414,3.5,126.74,126.71,7.89141954]
[1764597665621,3.5,126.74,126.72,5.17199405]
[1764597665825,3.5,126.74,126.73,4.49199405]
[1764597666123,54.18960933,126.75,126.73,5.17199405]
[1764597666414,46.3,126.75,126.74,5.17199405]
[1764597667417,46.3,126.75,126.72,0.68]
[1764597667624,0.67,126.74,126.71,8.57195272]
[1764597667811,9.03387525,126.74,126.71,7.89195272]
[1764597668006,3.5,126.74,126.72,0.68]
[1764597668209,4.17,126.74,126.71,13.43582797]
[1764597668902,12.0603405,126.74,126.71,8.57195272]
[1764597669115,5.53387525,126.73,126.69,4.86387525]
[1764597669318,5.53387525,126.73,126.68,4.86387525]
[1764597669319,3.5,126.72,126.68,4.86387525]
[1764597669624,9.03387525,126.72,126.68,4.86387525]
[1764597669793,0.67,126.71,126.68,5.54387525]
[1764597670192,0.67,126.71,126.68,13.43736919]
[1764597670900,0.67,126.71,126.69,4.86387525]
[1764597671335,11.39145446,126.72,126.69,5.54387525]
[1764597671496,12.06145446,126.72,126.69,5.54387525]
[1764597671696,8.80994492,126.74,126.71,4.86387525]
[1764597671914,3.5,126.74,126.72,4.86387525]
[1764597672110,4.17,126.74,126.72,4.86387525]
[1764597672324,3.5,126.74,126.72,4.86387525]
[1764597672521,3.5,126.74,126.69,3.5]
[1764597672726,3.5,126.74,126.72,4.86387525]
[1764597673104,3.5,126.74,126.72,5.54387525]
[1764597673626,12.06018814,126.74,126.72,4.86387525]
[1764597673822,12.06018814,126.74,126.71,7.89145369]
[1764597673823,0.67,126.73,126.71,4.86387525]
[1764597674010,11.39018814,126.74,126.72,0.68]
[1764597674431,3.5,126.74,126.72,4.86387525]
[1764597675232,3.5,126.74,126.72,5.54387525]
[1764597676117,36.04409662,126.77,126.73,5.54387525]
[1764597676305,19.71874476,126.79,126.73,5.54387525]
[1764597676306,0.67,126.79,126.76,4.86387525]
[1764597676503,12.15647274,126.8,126.78,4.86387525]
[1764597676709,16.308864,126.79,126.78,4.86387525]
[1764597677634,4.27,126.8,126.78,4.86387525]
[1764597677833,0.1,126.8,126.78,4.86387525]
[1764597678005,0.77,126.8,126.78,4.86387525]
[1764597678210,0.1,126.8,126.79,4.86387525]
[1764597678610,0.1,126.8,126.77,0.68]
[1764597678611,0.1,126.8,126.77,8.56799435]
[1764597678812,0.77,126.8,126.79,4.86387525]
[1764597679509,0.1,126.8,126.79,4.86387525]
[1764597680118,0.1,126.8,126.79,13.43093258]
[1764597681809,0.1,126.8,126.79,12.75093258]
[1764597682005,0.1,126.8,126.79,13.43093258]
[1764597685133,0.1,126.8,126.79,16.93093258]
[1764597692851,1e-08,126.82,126.79,36.79073749]
[1764597693141,1e-08,126.82,126.81,4.86387525]
[1764597693347,1e-08,126.82,126.81,8.36387525]
[1764597693663,1e-08,126.82,126.81,9.01387525]
[1764597693858,0.1,126.83,126.81,13.8777505]
[1764597694140,0.1,126.83,126.82,21.82273925]
[1764597694836,0.1,126.83,126.82,12.74906686]
[1764597695042,0.1,126.83,126.82,13.39906686]
[1764597697744,0.78,126.83,126.82,12.74906686]
[1764597698052,0.1,126.83,126.82,12.74906686]
[1764597699423,0.78,126.83,126.8,4.86387525]
[1764597700550,0.78,126.83,126.8,12.74989277]
[1764597701749,0.78,126.83,126.81,4.86387525]
[1764597703656,0.1,126.83,126.82,12.74906686]
[1764597704453,0.78,126.83,126.82,7.88519161]
[1764597705943,8.66468634,126.83,126.78,19.71897487]
[1764597706183,4.86387525,126.82,126.78,24.58285012]
[1764597706328,0.68,126.82,126.78,24.58285012]
[1764597706662,0.68,126.81,126.79,4.86387525]
[1764597707241,0.68,126.81,126.79,12.7508375]
[1764597707545,0.1,126.83,126.8,5.51387525]
[1764597707746,0.78,126.83,126.82,4.86387525]
[1764597708127,0.1,126.83,126.82,4.86387525]
[1764597709230,0.0359788,126.83,126.82,4.86387525]
[1764597711456,0.0359788,126.83,126.82,13.39906686]
[1764597711971,0.0359788,126.83,126.81,7.88556993]
[1764597712265,0.0359788,126.83,126.82,4.86387525]
[1764597712845,0.7159788,126.83,126.81,4.86387525]
[1764597713732,0.0359788,126.83,126.81,4.86387525]
[1764597713936,0.0359788,126.83,126.82,4.86387525]
[1764597714564,0.0359788,126.83,126.82,12.74906686]
[1764597714867,0.0359788,126.83,126.82,13.39906686]
[1764597716337,0.0359788,126.83,126.82,11.64177892]
[1764597716762,0.0359788,126.83,126.82,15.14177892]
[1764597718345,0.1,126.84,126.82,47.42326875]
[1764597718568,0.1,126.85,126.83,16.19293655]
[1764597718864,0.1,126.85,126.84,19.03293655]
[1764597719161,0.1,126.85,126.84,19.69293655]
[1764597719537,1e-08,126.85,126.84,19.83509812]
[1764597720263,1e-08,126.85,126.84,27.7190464]
[1764597720468,0.1,126.87,126.86,3.10658731]
[1764597720765,0.1,126.87,126.86,6.60658731]
[1764597721146,0.8,126.87,126.85,3.10658731]
[1764597721341,0.8,126.87,126.84,10.99053559]
[1764597721742,0.8,126.87,126.84,7.88394828]
[1764597721743,3.90658731,126.87,126.84,7.88394828]
[1764597721978,3.90658731,126.87,126.82,3.10658731]
[1764597722143,0.7,126.86,126.82,3.10658731]
[1764597722344,8.58305063,126.86,126.82,16.51700994]
[1764597722843,0.7,126.85,126.82,16.51700994]
[1764597723052,0.7,126.85,126.81,16.5176586]
[1764597723253,9.33207747,126.85,126.81,7.88558113]
[1764597723668,17.44202239,126.83,126.78,7.88767944]
[1764597723848,8.63207747,126.81,126.77,8.63207747]
[1764597724052,0.7,126.82,126.78,8.63207747]
[1764597724237,8.63207747,126.8,126.75,19.72337881]
[1764597724440,16.51891369,126.8,126.75,16.52162382]
[1764597724644,0.7,126.79,126.75,16.52162382]
[1764597725662,8.58741684,126.79,126.75,16.52162382]
[1764597726171,0.7,126.78,126.75,16.52162382]
[1764597728772,0.7,126.78,126.75,7.88954635]
[1764597728975,0.7,126.78,126.75,16.52162382]
[1764597729172,8.5880685,126.78,126.75,8.63207747]
[1764597729546,0.7,126.77,126.75,8.63207747]
[1764597730160,0.7,126.77,126.75,16.52152947]
[1764597730347,0.7,126.79,126.75,16.52152947]
[1764597730546,0.7,126.79,126.75,8.63207747]
[1764597731055,0.7,126.79,126.75,9.29207747]
[1764597731363,0.7,126.79,126.75,8.63207747]
[1764597731564,0.7,126.79,126.75,16.52158527]
[1764597731771,0.7,126.79,126.75,17.18158527]
[1764597732348,8.5876308,126.79,126.74,12.13207747]
[1764597732563,8.63207747,126.76,126.69,0.2]
[1764597732888,8.63207747,126.74,126.69,8.83207747]
[1764597733062,8.63207747,126.74,126.69,16.72531603]
[1764597733375,0.7,126.73,126.69,17.38531603]
[1764597734274,8.59081728,126.73,126.69,17.38531603]
[1764597734869,0.7,126.73,126.7,8.63207747]
[1764597735080,45.54038371,126.77,126.72,8.63207747]
[1764597735284,45.54038371,126.77,126.73,8.63207747]
[1764597735285,20.42157479,126.77,126.73,8.63207747]
[1764597735571,8.58831288,126.77,126.73,8.63207747]
[1764597735780,0.7,126.76,126.73,8.63207747]
[1764597736675,8.5889787,126.76,126.73,8.63207747]
[1764597737458,0.7,126.8,126.75,8.63207747]
[1764597737653,25.11880892,126.79,126.74,8.63207747]
[1764597737856,0.7,126.78,126.74,8.63207747]
[1764597738380,16.52100142,126.76,126.7,12.05265982]
[1764597738579,16.52100142,126.76,126.7,0.66]
[1764597738752,0.7,126.75,126.71,8.63207747]
[1764597739480,0.7,126.75,126.71,9.29207747]
[1764597740459,8.58960657,126.75,126.71,17.18360031]
[1764597740654,8.58960657,126.75,126.71,16.52360031]
[1764597740863,0.7,126.74,126.7,17.18455509]
[1764597741586,9.33207747,126.74,126.7,7.89247762]
[1764597741797,17.44202239,126.73,126.69,0.2]
[1764597741957,0.7,126.72,126.69,0.2]
[1764597742283,0.7,126.73,126.69,0.86]
[1764597742489,7.89141414,126.72,126.7,8.63207747]
[1764597743078,3.5,126.74,126.7,16.52462525]
[1764597743286,8.58892395,126.76,126.73,8.63207747]
[1764597743775,8.58892395,126.76,126.72,8.63207747]
[1764597743776,0.7,126.75,126.72,8.63207747]
[1764597744289,0.7,126.75,126.7,27.62419734]
[1764597744584,8.59012762,126.75,126.71,9.29207747]
[1764597745084,8.59012762,126.75,126.72,8.63207747]
[1764597745782,4.2,126.77,126.74,8.63207747]
[1764597745980,3.5,126.77,126.75,8.63207747]
[1764597746189,4.22,126.77,126.75,8.63207747]
[1764597747176,3.5,126.77,126.76,8.63207747]
[1764597747375,8.60732424,126.79,126.76,8.63207747]
[1764597747570,0.72,126.79,126.77,8.63207747]
[1764597747776,16.308864,126.81,126.77,8.63207747]
[1764597748073,8.60458987,126.83,126.8,8.63207747]
[1764597748268,19.70754239,126.86,126.82,8.63207747]
[1764597748473,20.42754239,126.86,126.82,8.63207747]
[1764597748674,0.72,126.85,126.82,8.63207747]
[1764597748875,0.72,126.85,126.81,9.32207747]
[1764597749267,8.60345694,126.85,126.81,17.20761476]
[1764597750192,0.72,126.84,126.81,9.32207747]
[1764597750564,0.72,126.84,126.81,17.20789062]
[1764597750760,9.35207747,126.84,126.8,8.63207747]
[1764597750989,0.72,126.83,126.8,8.63207747]
[1764597751291,8.60494999,126.83,126.8,8.63207747]
[1764597751593,8.60494999,126.83,126.79,16.51905846]
[1764597751791,0.72,126.83,126.8,8.63207747]
[1764597751966,11.38408308,126.84,126.8,8.63207747]
[1764597752167,0.72,126.82,126.8,8.63207747]
[1764597753093,0.71,126.83,126.8,16.51841145]
[1764597753792,9.34207747,126.83,126.78,8.63207747]
[1764597754389,0.71,126.82,126.79,8.63207747]
[1764597754887,8.59559562,126.82,126.79,8.63207747]
[1764597755295,0.71,126.81,126.79,8.63207747]
[1764597755700,0.71,126.81,126.78,8.63207747]
[1764597755896,0.71,126.86,126.8,9.32207747]
[1764597756076,12.40994492,126.87,126.84,8.63207747]
[1764597756478,8.90994492,126.87,126.84,8.63207747]
[1764597756686,8.90994492,126.87,126.8,24.94094147]
[1764597756687,0.1,126.87,126.86,8.63207747]
[1764597757084,0.1,126.87,126.85,8.63207747]
[1764597758000,13.11994492,126.87,126.83,8.63207747]
[1764597758478,0.71,126.86,126.83,8.63207747]
[1764597758892,8.5927689,126.86,126.83,8.63207747]
[1764597759303,8.5927689,126.86,126.83,16.51656286]
[1764597760988,8.5927689,126.86,126.84,8.63207747]
[1764597761393,8.5927689,126.86,126.83,16.51656286]
[1764597761998,0.71,126.86,126.83,17.20656286]
[1764597762200,0.1,126.87,126.85,8.63207747]
[1764597762404,0.1,126.87,126.86,8.63207747]
[1764597762807,0.1,126.87,126.86,9.32207747]
[1764597763211,0.1,126.87,126.86,12.82207747]
[1764597763518,0.1,126.87,126.86,9.32207747]
[1764597764102,0.1,126.87,126.86,7.88270534]
[1764597764414,0.1,126.87,126.85,23.20825215]
[1764597764415,0.1,126.87,126.85,8.63207747]
[1764597764612,0.81,126.87,126.84,16.51564451]
[1764597764813,0.1,126.87,126.85,8.63207747]
[1764597765024,0.81,126.87,126.84,17.20564451]
[1764597765392,8.69227812,126.87,126.83,7.88456989]
[1764597765600,8.80994492,126.86,126.83,7.88456989]
[1764597765806,11.48227812,126.87,126.84,0.69]
[1764597766123,0.1,126.87,126.84,9.32207747]
[1764597766324,0.71,126.86,126.83,7.88456989]
[1764597766526,0.71,126.86,126.83,16.51664736]
[1764597766710,0.71,126.86,126.83,7.88456989]
[1764597767422,0.71,126.86,126.82,29.03384323]
[1764597767423,8.59305567,126.86,126.82,16.5170686]
[1764597767923,8.59305567,126.86,126.82,17.2070686]
[1764597768298,7.88305567,126.86,126.82,17.2070686]
[1764597768499,0.71,126.85,126.82,17.2070686]
[1764597768700,8.59305567,126.86,126.82,17.2070686]
[1764597768913,7.88305567,126.86,126.83,9.32207747]
[1764597769400,8.59305567,126.86,126.83,9.32207747]
[1764597770513,7.88305567,126.86,126.83,9.32207747]
[1764597770714,0.1,126.87,126.84,9.32207747]
[1764597771101,0.1,126.87,126.85,0.69]
[1764597771828,7.98209083,126.87,126.84,8.63207747]
[1764597772124,8.69209083,126.87,126.84,8.63207747]
[1764597772326,0.1,126.87,126.86,16.51478281]
[1764597772705,0.1,126.87,126.86,17.20478281]
[1764597774809,0.1,126.87,126.86,8.63207747]
[1764597775012,0.1,126.87,126.84,20.70571159]
[1764597776222,0.8,126.87,126.84,20.70571159]
[1764597776413,0.1,126.87,126.84,20.70571159]
[1764597776614,0.1,126.87,126.86,16.51478281]
[1764597777133,0.1,126.87,126.86,17.23478281]
[1764597778517,0.1,126.87,126.86,22.11791063]
[1764597781425,0.1,126.87,126.86,22.2600722]
[1764597781629,1e-08,126.87,126.86,22.2600722]